fUSD/lending_fUSD_20240526
["ID","MTS","AMOUNT","RATE_DAILY","PERIOD"]
[327977335,1716732703699,-500.0,0.00031232,4]
[327977336,1716732703709,-500.0,0.00031232,4]
[327977337,1716732703719,-500.0,0.00031232,4]
[327977338,1716732703730,-1268.26,0.00031232,4]
[327977339,1716732703739,-1085.42,0.00031232,4]
[327977340,1716732703749,-8694.34,0.00031232,4]
[327977341,1716732703759,-500.0,0.00031232,4]
[327977342,1716732703769,-1268.05,0.00031232,4]
[327977343,1716732703782,-1448.06,0.00031232,4]
[327977344,1716732703792,-972.62,0.00031232,4]
[327977345,1716732703801,-573.16,0.00031232,4]
[327977346,1716732703812,-3904.28,0.00031232,4]
[327977347,1716732703824,-914.87,0.00031232,4]
[327977348,1716732703835,-1089.59,0.00031232,4]
[327977349,1716732703846,-500.0,0.00031232,4]
[327977350,1716732703856,-885.34,0.00031232,4]
[327977351,1716732703865,-591.51,0.00031232,4]
[327977352,1716732703876,-500.0,0.00031232,4]
[327977353,1716732703885,-1079.94,0.00031232,4]
[327977354,1716732703895,-879.76,0.00031232,4]
[327977355,1716732703904,-1841.81,0.00031232,4]
[327977356,1716732703915,-500.0,0.00031232,4]
[327977357,1716732703925,-1077.58,0.00031232,4]
[327977358,1716732703935,-625.43,0.00031232,4]
[327977359,1716732703945,-500.0,0.00031232,4]
[327977360,1716732703955,-710.46,0.00031232,4]
[327977361,1716732703964,-647.72,0.00031232,4]
[327977362,1716732703974,-568.85,0.00031232,4]
[327977363,1716732703984,-869.84,0.00031232,4]
[327977364,1716732703995,-678.18,0.00031232,4]
[327977365,1716732704006,-500.0,0.00031232,4]
[327977366,1716732704016,-717.42,0.00031232,4]
[327977367,1716732704025,-576.0,0.00031232,4]
[327977368,1716732704034,-1137.45,0.00031232,4]
[327977369,1716732704044,-500.0,0.00031232,4]
[327977370,1716732704055,-500.0,0.00031232,4]
[327977371,1716732704065,-500.0,0.00031232,4]
[327977372,1716732704075,-1101.55,0.00031232,4]
[327977373,1716732704085,-518.53112798,0.00031232,4]
[327977374,1716732704095,-504.89,0.00031232,4]
[327977375,1716732704105,-623.77,0.00031232,4]
[327977376,1716732704115,-570.33,0.00031232,4]
[327977377,1716732704125,-853.64,0.00031232,4]
[327977378,1716732704135,-1592.22,0.00031232,4]
[327977379,1716732704146,-1027.97,0.00031232,4]
[327977380,1716732704155,-500.0,0.00031232,4]
[327977381,1716732704165,-1044.37,0.00031232,4]
[327977382,1716732704175,-1313.69,0.00031232,4]
[327977383,1716732704185,-624.18,0.00031232,4]
[327977384,1716732704196,-1190.26,0.00031232,4]
[327977385,1716732704206,-4137.91,0.00031232,4]
[327977386,1716732704216,-1036.79,0.00031232,4]
[327977387,1716732704226,-500.0,0.00031232,4]
[327977388,1716732704236,-347.62044849,0.00031232,4]
[327977389,1716732704246,-850.51,0.00031232,4]
[327977390,1716732704256,-1474.98,0.00031232,4]
[327977391,1716732704265,-916.61,0.00031232,4]
[327977392,1716732704275,-500.0,0.00031232,4]
[327977393,1716732704284,-707.12,0.00031232,4]
[327977394,1716732704294,-500.0,0.00031232,4]
[327977395,1716732704304,-2412.83,0.00031232,4]
[327977396,1716732704314,-500.0,0.00031232,4]
[327977397,1716732704324,-687.58,0.00031232,4]
[327977398,1716732704334,-1038.84,0.00031232,4]
[327977399,1716732704344,-305.77580547,0.00031232,2]
[327977400,1716732704354,-500.0,0.00031232,4]
[327977401,1716732704363,-500.0,0.00031232,4]
[327977402,1716732704373,-500.0,0.00031232,4]
[327977403,1716732704383,-928.91,0.00031232,4]
[327977404,1716732704393,-654.73,0.00031232,4]
[327977405,1716732704403,-592.19,0.00031232,4]
[327977406,1716732704413,-502.52,0.00031232,4]
[327977407,1716732704423,-500.0,0.00031232,4]
[327977408,1716732704433,-500.0,0.00031232,4]
[327977409,1716732704443,-1244.5,0.00031232,4]
[327977410,1716732704452,-901.87,0.00031232,4]
[327977411,1716732704462,-827.03,0.00031232,4]
[327977412,1716732704473,-586.69,0.00031232,4]
[327977413,1716732704486,-793.2,0.00031232,4]
[327977414,1716732704495,-156.96255257,0.0003125,7]
[327977415,1716732704505,-156.96255257,0.00031256,7]
[327977416,1716732704515,-156.96255257,0.00031264,7]
[327977417,1716732704526,-25000.0,0.000313,2]
[327977418,1716732704536,-150.0,0.000313,7]
[327977419,1716732704546,-67873.54376683,0.00031313,3]
[327977420,1716732704561,-153.31773338,0.00031363,7]
[327977421,1716732704570,-156.96255268,0.00031397,7]
[327977422,1716732704581,-154.4578976,0.00031399,7]
[327977423,1716732704591,-445.0,0.000314,20]
[327977424,1716732704602,-452.08082458,0.00031405,2]
[327977425,1716732704612,-150.0,0.00031417,7]
[327977426,1716732704622,-8006.06179357,0.00031462,2]
[327977427,1716732704632,-157.86209062,0.00031481,7]
[327977428,1716732704642,-260.1634885,0.000315,2]
[327977429,1716732704652,-500.0,0.00031506,4]
[327977430,1716732704662,-867.51,0.00031506,4]
[327977431,1716732704672,-613.37,0.00031506,4]
[327977432,1716732704682,-689.25,0.00031506,4]
[327977433,1716732704692,-912.17,0.00031506,4]
[327977434,1716732704704,-500.0,0.00031506,4]
[327977435,1716732704714,-577.1,0.00031506,4]
[327977436,1716732704724,-3083.08,0.00031506,4]
[327977437,1716732704734,-500.0,0.00031506,4]
[327977438,1716732704744,-691.79,0.00031506,4]
[327977439,1716732704754,-500.0,0.00031506,4]
[327977440,1716732704764,-500.0,0.00031506,4]
[327977441,1716732704774,-1003.57,0.00031506,4]
[327977442,1716732704784,-702.93,0.00031506,4]
[327977443,1716732704794,-900.58,0.00031506,4]
[327977444,1716732704804,-500.0,0.00031506,4]
[327977445,1716732704814,-891.34,0.00031506,4]
[327977446,1716732704824,-838.16,0.00031506,2]
[327977447,1716732704833,-500.0,0.00031506,4]
[327977448,1716732704843,-576.75,0.00031506,4]
[327977449,1716732704853,-615.98,0.00031506,4]
[327977450,1716732704863,-767.17,0.00031506,4]
[327977451,1716732704874,-633.88,0.00031506,4]
[327977452,1716732704884,-500.0,0.00031506,4]
[327977453,1716732704894,-758.6,0.00031506,4]
[327977454,1716732704903,-1363.1,0.00031506,4]
[327977455,1716732704914,-553.78919767,0.00031506,4]
[327977456,1716732704923,-500.0,0.00031506,4]
[327977457,1716732704933,-535.29,0.00031506,4]
[327977458,1716732704944,-500.0,0.00031506,4]
[327977459,1716732704953,-596.76,0.00031506,4]
[327977460,1716732704963,-500.0,0.00031506,4]
[327977461,1716732704972,-500.0,0.00031506,4]
[327977462,1716732704982,-500.0,0.00031506,4]
[327977463,1716732704992,-500.0,0.00031506,4]
[327977464,1716732705001,-229.54744352,0.00031506,4]
[327977465,1716732705013,-605.9998108,0.00031506,4]
[327977466,1716732705024,-500.0,0.00031506,4]
[327977467,1716732705034,-500.0,0.00031506,4]
[327977468,1716732705045,-500.0,0.00031506,4]
[327977469,1716732705055,-638.58,0.00031506,4]
[327977470,1716732705066,-813.06,0.00031506,4]
[327977471,1716732705076,-676.35,0.00031506,4]
[327977472,1716732705087,-1206.79,0.00031506,4]
[327977473,1716732705097,-500.0,0.00031506,4]
[327977474,1716732705107,-758.9,0.00031506,4]
[327977475,1716732705118,-500.0,0.00031506,4]
[327977476,1716732705128,-544.35,0.00031506,2]
[327977477,1716732705138,-500.0,0.00031506,4]
[327977478,1716732705149,-500.0,0.00031506,4]
[327977479,1716732705159,-500.0,0.00031506,4]
[327977480,1716732705169,-607.01,0.00031506,4]
[327977481,1716732705180,-869.48,0.00031506,4]
[327977482,1716732705190,-500.0,0.00031506,4]
[327977483,1716732705202,-598.19,0.00031506,4]
[327977484,1716732705212,-501.39,0.00031506,4]
[327977485,1716732705222,-565.06,0.00031506,4]
[327977486,1716732705233,-500.0,0.00031506,4]
[327977487,1716732705243,-536.08,0.00031506,4]
[327977488,1716732705254,-500.0,0.00031506,4]
[327977489,1716732705264,-500.0,0.00031506,4]
[327977490,1716732705274,-500.0,0.00031506,4]
[327977491,1716732705284,-500.0,0.00031506,4]
[327977492,1716732705294,-159.95187161,0.00031506,4]
[327977493,1716732705304,-500.0,0.00031506,4]
[327977494,1716732705315,-500.0,0.00031506,4]
[327977495,1716732705325,-575.01,0.00031506,4]
[327977496,1716732705336,-500.0,0.00031506,4]
[327977497,1716732705345,-267.31132969,0.00031506,4]
[327977498,1716732705355,-500.0,0.00031506,4]
[327977499,1716732705365,-179.19,0.00031506,4]
[327977500,1716732705375,-664.28,0.00031506,4]
[327977501,1716732705386,-578.94767591,0.00031506,4]
[327977502,1716732705396,-500.0,0.00031506,4]
[327977503,1716732705406,-500.0,0.00031506,4]
[327977504,1716732705417,-1420.49,0.00031506,4]
[327977505,1716732705426,-911.95,0.00031506,4]
[327977506,1716732705437,-532.91,0.00031506,4]
[327977507,1716732705448,-876.64,0.00031506,4]
[327977508,1716732705458,-845.02,0.00031506,4]
[327977509,1716732705468,-500.0,0.00031506,4]
[327977510,1716732705481,-1217.15,0.00031506,4]
[327977511,1716732705491,-500.0,0.00031506,4]
[327977512,1716732705502,-500.0,0.00031506,4]
[327977513,1716732705512,-500.0,0.00031506,4]
[327977514,1716732705524,-1573.33,0.00031506,4]
[327977515,1716732705534,-1943.35,0.00031506,4]
[327977516,1716732705708,-647.0,0.00031506,4]
[327977517,1716732705735,-827.18,0.00031506,4]
[327977518,1716732705745,-525.9,0.00031506,4]
[327977519,1716732705755,-1647.19,0.00031506,4]
[327977520,1716732705765,-812.79,0.00031506,4]
[327977521,1716732705775,-656.92,0.00031506,4]
[327977522,1716732705785,-1479.16,0.00031506,4]
[327977523,1716732705794,-500.0,0.00031506,4]
[327977524,1716732705804,-859.25,0.00031506,4]
[327977525,1716732705813,-500.0,0.00031506,4]
[327977526,1716732705823,-705.7,0.00031506,4]
[327977527,1716732705833,-524.26,0.00031506,4]
[327977528,1716732705843,-499.9856011,0.00031506,4]
[327977529,1716732705853,-852.83,0.00031506,4]
[327977530,1716732705864,-792.18,0.00031506,4]
[327977531,1716732705874,-9047.47,0.00031506,4]
[327977532,1716732705884,-2563.75,0.00031506,4]
[327977533,1716732705894,-500.0,0.00031506,4]
[327977534,1716732705904,-500.0,0.00031506,4]
[327977535,1716732705913,-543.61,0.00031506,4]
[327977536,1716732705923,-937.7,0.00031506,4]
[327977537,1716732705933,-657.54,0.00031506,4]
[327977538,1716732705943,-1533.52,0.00031506,4]
[327977539,1716732705953,-782.0,0.00031506,4]
[327977540,1716732705963,-1870.6,0.00031506,4]
[327977541,1716732705972,-662.47,0.00031506,4]
[327977542,1716732705982,-523.58,0.00031506,4]
[327977543,1716732705992,-500.0,0.00031506,4]
[327977544,1716732706001,-611.87,0.00031506,4]
[327977545,1716732706011,-709.98,0.00031506,4]
[327977546,1716732706021,-500.0,0.00031506,4]
[327977547,1716732706031,-739.81,0.00031506,4]
[327977548,1716732706041,-500.0,0.00031506,4]
[327977549,1716732706051,-6199.76,0.00031506,4]
[327977550,1716732706061,-724.86,0.00031506,4]
[327977551,1716732706070,-1320.63,0.00031506,4]
[327977552,1716732706079,-500.0,0.00031506,4]
[327977553,1716732706091,-500.0,0.00031506,4]
[327977554,1716732706101,-852.95,0.00031506,4]
[327977555,1716732706112,-2564.82,0.00031506,4]
[327977556,1716732706121,-818.52,0.00031506,4]
[327977557,1716732706131,-2538.12,0.00031506,4]
[327977558,1716732706140,-500.0,0.00031506,4]
[327977559,1716732706150,-598.56,0.00031506,4]
[327977560,1716732706160,-500.0,0.00031506,4]
[327977561,1716732706169,-2937.07,0.00031506,4]
[327977562,1716732706179,-571.73,0.00031506,4]
[327977563,1716732706189,-1041.17,0.00031506,4]
[327977564,1716732706200,-500.0,0.00031506,4]
[327977565,1716732706209,-500.0,0.00031506,4]
[327977566,1716732706219,-656.51,0.00031506,4]
[327977567,1716732706229,-1310.5,0.00031506,4]
[327977568,1716732706240,-500.0,0.00031506,4]
[327977569,1716732706251,-552.73,0.00031506,4]
[327977570,1716732706261,-967.98,0.00031506,4]
[327977571,1716732706271,-1148.48,0.00031506,4]
[327977572,1716732706280,-795.96,0.00031506,4]
[327977573,1716732706291,-678.18,0.00031506,4]
[327977574,1716732706301,-500.0,0.00031506,4]
[327977575,1716732706312,-576.35,0.00031506,4]
[327977576,1716732706321,-585.71,0.00031506,4]
[327977577,1716732706331,-606.32,0.00031506,4]
[327977578,1716732706341,-1027.88,0.00031506,4]
[327977579,1716732706351,-2390.71,0.00031506,4]
[327977580,1716732706360,-720.94,0.00031506,4]
[327977581,1716732706370,-884.01,0.00031506,4]
[327977582,1716732706380,-571.26,0.00031506,4]
[327977583,1716732706389,-1408.04,0.00031506,4]
[327977584,1716732706399,-500.0,0.00031506,4]
[327977585,1716732706409,-500.0,0.00031506,4]
[327977586,1716732706419,-500.0,0.00031506,4]
[327977587,1716732706430,-1268.26,0.00031506,4]
[327977588,1716732706440,-1085.42,0.00031506,4]
[327977589,1716732706451,-8694.34,0.00031506,4]
[327977590,1716732706460,-500.0,0.00031506,4]
[327977591,1716732706471,-1268.05,0.00031506,4]
[327977592,1716732706484,-1448.06,0.00031506,4]
[327977593,1716732706495,-972.62,0.00031506,4]
[327977594,1716732706504,-573.16,0.00031506,4]
[327977595,1716732706514,-3904.28,0.00031506,4]
[327977596,1716732706527,-914.87,0.00031506,4]
[327977597,1716732706537,-1089.59,0.00031506,4]
[327977598,1716732706547,-500.0,0.00031506,4]
[327977599,1716732706559,-885.34,0.00031506,4]
[327977600,1716732706569,-591.51,0.00031506,4]
[327977601,1716732706580,-500.0,0.00031506,4]
[327977602,1716732706590,-1079.94,0.00031506,4]
[327977603,1716732706600,-879.76,0.00031506,4]
[327977604,1716732706610,-1841.81,0.00031506,4]
[327977605,1716732706620,-500.0,0.00031506,4]
[327977606,1716732706630,-1077.58,0.00031506,4]
[327977607,1716732706639,-625.43,0.00031506,4]
[327977608,1716732706648,-500.0,0.00031506,4]
[327977609,1716732706659,-710.46,0.00031506,4]
[327977610,1716732706669,-568.85,0.00031506,4]
[327977611,1716732706679,-647.72,0.00031506,4]
[327977612,1716732706688,-869.84,0.00031506,4]
[327977613,1716732706699,-678.18,0.00031506,4]
[327977614,1716732706709,-500.0,0.00031506,4]
[327977615,1716732706719,-717.42,0.00031506,4]
[327977616,1716732706728,-576.0,0.00031506,4]
[327977617,1716732706738,-1137.45,0.00031506,4]
[327977618,1716732706748,-500.0,0.00031506,4]
[327977619,1716732706759,-500.0,0.00031506,4]
[327977620,1716732706768,-500.0,0.00031506,4]
[327977621,1716732706778,-1101.55,0.00031506,4]
[327977622,1716732706788,-504.89,0.00031506,4]
[327977623,1716732706797,-623.77,0.00031506,4]
[327977624,1716732706808,-570.33,0.00031506,4]
[327977625,1716732706817,-853.64,0.00031506,4]
[327977626,1716732706826,-1592.22,0.00031506,4]
[327977627,1716732706836,-1027.97,0.00031506,4]
[327977628,1716732706846,-500.0,0.00031506,4]
[327977629,1716732706855,-1044.37,0.00031506,4]
[327977630,1716732706866,-1313.69,0.00031506,4]
[327977631,1716732706876,-624.18,0.00031506,4]
[327977632,1716732706886,-1190.26,0.00031506,4]
[327977633,1716732706895,-4137.91,0.00031506,4]
[327977634,1716732706904,-1036.79,0.00031506,4]
[327977635,1716732706914,-500.0,0.00031506,4]
[327977636,1716732706924,-850.51,0.00031506,4]
[327977637,1716732706934,-1474.98,0.00031506,4]
[327977638,1716732706944,-916.61,0.00031506,4]
[327977639,1716732706953,-500.0,0.00031506,4]
[327977640,1716732706962,-707.12,0.00031506,4]
[327977641,1716732706971,-626.06440012,0.00031506,4]
[327977642,1716732706981,-2412.83,0.00031506,4]
[327977643,1716732706991,-500.0,0.00031506,4]
[327977644,1716732707000,-687.58,0.00031506,4]
[327977645,1716732707010,-1038.84,0.00031506,4]
[327977646,1716732707021,-500.0,0.00031506,4]
[327977647,1716732707031,-212.75171691,0.00031506,4]
[327977648,1716732707040,-928.91,0.00031506,4]
[327977649,1716732707050,-500.0,0.00031506,4]
[327977650,1716732707060,-654.73,0.00031506,4]
[327977651,1716732707070,-592.19,0.00031506,4]
[327977652,1716732707080,-502.52,0.00031506,4]
[327977653,1716732707090,-500.0,0.00031506,4]
[327977654,1716732707099,-500.0,0.00031506,4]
[327977655,1716732707111,-1244.5,0.00031506,4]
[327977656,1716732707133,-827.03,0.00031506,4]
[327977657,1716732707154,-901.87,0.00031506,4]
[327977658,1716732707176,-586.69,0.00031506,4]
[327977659,1716732707203,-753.04240616,0.00031506,7]
[327977660,1716732707239,-232.27766012,0.00031506,7]
[327977661,1716732707276,-249.23485907,0.00031506,7]
[327977662,1716732707285,-2006.01668888,0.00031506,7]
[327977663,1716732707295,-300.0,0.00031539,2]
[327977664,1716732707305,-159.77442629,0.00031575,7]
[327977665,1716732707314,-166.66666666,0.00031588,7]
[327977666,1716732707324,-159.24587385,0.00031639,7]
[327977667,1716732707333,-5800.0,0.00031746,2]
[327977668,1716732707342,-5800.0,0.00031746,2]
[327977669,1716732707351,-5800.0,0.00031755,2]
[327977670,1716732707361,-5800.0,0.00031763,2]
[327977671,1716732707371,-5800.0,0.00031763,2]
[327977672,1716732707380,-5800.0,0.00031763,2]
[327977673,1716732707390,-5800.0,0.00031772,2]
[327977674,1716732707400,-5800.0,0.00031772,2]
[327977675,1716732707409,-5800.0,0.00031772,2]
[327977676,1716732707418,-150.0,0.00031772,7]
[327977677,1716732707427,-150.0,0.00031772,7]
[327977678,1716732707437,-10707.06410034,0.00031777,2]
[327977679,1716732707448,-5800.0,0.0003178,2]
[327977680,1716732707458,-5800.0,0.0003178,2]
[327977681,1716732707466,-500.0,0.0003178,4]
[327977682,1716732707478,-867.51,0.0003178,4]
[327977683,1716732707489,-613.37,0.0003178,4]
[327977684,1716732707498,-5800.0,0.0003178,2]
[327977685,1716732707508,-689.25,0.0003178,4]
[327977686,1716732707518,-912.17,0.0003178,4]
[327977687,1716732707528,-591.04617856,0.0003178,4]
[327977688,1716732707537,-577.1,0.0003178,4]
[327977689,1716732707546,-3083.08,0.0003178,4]
[327977690,1716732707556,-425.00843371,0.0003178,4]
[327977691,1716732707565,-691.79,0.0003178,4]
[327977692,1716732707573,-500.0,0.0003178,4]
[327977693,1716732707582,-500.0,0.0003178,4]
[327977694,1716732707591,-1003.57,0.0003178,4]
[327977695,1716732707601,-702.93,0.0003178,4]
[327977696,1716732707611,-900.58,0.0003178,4]
[327977697,1716732707620,-500.0,0.0003178,4]
[327977698,1716732707630,-891.34,0.0003178,4]
[327977699,1716732707640,-838.16,0.0003178,2]
[327977700,1716732707649,-500.0,0.0003178,4]
[327977701,1716732707658,-615.98,0.0003178,4]
[327977702,1716732707667,-576.75,0.0003178,4]
[327977703,1716732707676,-767.17,0.0003178,4]
[327977704,1716732707685,-633.88,0.0003178,4]
[327977705,1716732707695,-317.90106107,0.0003178,4]
[327977706,1716732707705,-758.6,0.0003178,4]
[327977707,1716732707714,-1363.1,0.0003178,4]
[327977708,1716732707724,-500.0,0.0003178,4]
[327977709,1716732707733,-535.29,0.0003178,4]
[327977710,1716732707742,-500.0,0.0003178,4]
[327977711,1716732707751,-596.76,0.0003178,4]
[327977712,1716732707760,-500.0,0.0003178,4]
[327977713,1716732707769,-500.0,0.0003178,4]
[327977714,1716732707779,-500.0,0.0003178,4]
[327977715,1716732707788,-340.26820181,0.0003178,4]
[327977716,1716732707798,-500.0,0.0003178,4]
[327977717,1716732707807,-500.0,0.0003178,4]
[327977718,1716732707816,-500.0,0.0003178,4]
[327977719,1716732707826,-638.58,0.0003178,4]
[327977720,1716732707835,-813.06,0.0003178,4]
[327977721,1716732707844,-676.35,0.0003178,4]
[327977722,1716732707853,-1206.79,0.0003178,4]
[327977723,1716732707863,-542.54507269,0.0003178,4]
[327977725,1716732707872,-758.9,0.0003178,4]
[327977726,1716732707882,-500.0,0.0003178,4]
[327977727,1716732707891,-544.35,0.0003178,2]
[327977728,1716732707901,-500.0,0.0003178,4]
[327977729,1716732707911,-500.0,0.0003178,4]
[327977730,1716732707920,-500.0,0.0003178,4]
[327977731,1716732707930,-607.01,0.0003178,4]
[327977732,1716732707940,-869.48,0.0003178,4]
[327977733,1716732707952,-500.0,0.0003178,4]
[327977734,1716732707961,-598.19,0.0003178,4]
[327977735,1716732707971,-501.39,0.0003178,4]
[327977736,1716732707980,-565.06,0.0003178,4]
[327977737,1716732707990,-500.0,0.0003178,4]
[327977738,1716732707999,-536.08,0.0003178,4]
[327977739,1716732708009,-318.43820457,0.0003178,4]
[327977740,1716732708018,-500.0,0.0003178,4]
[327977741,1716732708027,-500.0,0.0003178,4]
[327977742,1716732708038,-500.0,0.0003178,4]
[327977743,1716732708047,-500.0,0.0003178,4]
[327977744,1716732708056,-500.0,0.0003178,4]
[327977745,1716732708066,-575.01,0.0003178,4]
[327977746,1716732708075,-500.0,0.0003178,4]
[327977747,1716732708084,-500.0,0.0003178,4]
[327977748,1716732708094,-179.19,0.0003178,4]
[327977749,1716732708103,-664.28,0.0003178,4]
[327977750,1716732708113,-500.0,0.0003178,4]
[327977751,1716732708122,-500.0,0.0003178,4]
[327977752,1716732708131,-1420.49,0.0003178,4]
[327977753,1716732708140,-911.95,0.0003178,4]
[327977754,1716732708150,-532.91,0.0003178,4]
[327977755,1716732708159,-876.64,0.0003178,4]
[327977756,1716732708169,-845.02,0.0003178,4]
[327977757,1716732708178,-405.01777883,0.0003178,4]
[327977758,1716732708187,-1217.15,0.0003178,4]
[327977759,1716732708200,-500.0,0.0003178,4]
[327977760,1716732708209,-500.0,0.0003178,4]
[327977761,1716732708219,-500.0,0.0003178,4]
[327977762,1716732708229,-1573.33,0.0003178,4]
[327977763,1716732708238,-1943.35,0.0003178,4]
[327977764,1716732708247,-647.0,0.0003178,4]
[327977765,1716732708256,-827.18,0.0003178,4]
[327977766,1716732708265,-525.9,0.0003178,4]
[327977767,1716732708274,-1647.19,0.0003178,4]
[327977768,1716732708283,-812.79,0.0003178,4]
[327977769,1716732708293,-656.92,0.0003178,4]
[327977770,1716732708302,-1479.16,0.0003178,4]
[327977771,1716732708312,-500.0,0.0003178,4]
[327977772,1716732708321,-859.25,0.0003178,4]
[327977773,1716732708330,-500.0,0.0003178,4]
[327977774,1716732708339,-705.7,0.0003178,4]
[327977775,1716732708350,-524.26,0.0003178,4]
[327977776,1716732708359,-852.83,0.0003178,4]
[327977777,1716732708369,-792.18,0.0003178,4]
[327977778,1716732708379,-9047.47,0.0003178,4]
[327977779,1716732708388,-2563.75,0.0003178,4]
[327977780,1716732708398,-500.0,0.0003178,4]
[327977781,1716732708407,-500.0,0.0003178,4]
[327977782,1716732708417,-543.61,0.0003178,4]
[327977783,1716732708427,-937.7,0.0003178,4]
[327977784,1716732708436,-657.54,0.0003178,4]
[327977785,1716732708446,-1533.52,0.0003178,4]
[327977786,1716732708456,-782.0,0.0003178,4]
[327977787,1716732708465,-1870.6,0.0003178,4]
[327977788,1716732708476,-662.47,0.0003178,4]
[327977789,1716732708488,-523.58,0.0003178,4]
[327977790,1716732708498,-500.0,0.0003178,4]
[327977791,1716732708507,-611.87,0.0003178,4]
[327977792,1716732708518,-709.98,0.0003178,4]
[327977793,1716732708528,-500.0,0.0003178,4]
[327977794,1716732708538,-739.81,0.0003178,4]
[327977795,1716732708548,-500.0,0.0003178,4]
[327977796,1716732708559,-6199.76,0.0003178,4]
[327977797,1716732708568,-724.86,0.0003178,4]
[327977798,1716732708578,-1320.63,0.0003178,4]
[327977799,1716732708587,-500.0,0.0003178,4]
[327977800,1716732708598,-500.0,0.0003178,4]
[327977801,1716732708607,-852.95,0.0003178,4]
[327977802,1716732708617,-2564.82,0.0003178,4]
[327977803,1716732708627,-818.52,0.0003178,4]
[327977804,1716732708637,-2538.12,0.0003178,4]
[327977805,1716732708647,-500.0,0.0003178,4]
[327977806,1716732708657,-598.56,0.0003178,4]
[327977807,1716732708669,-500.0,0.0003178,4]
[327977808,1716732708679,-2937.07,0.0003178,4]
[327977809,1716732708689,-571.73,0.0003178,4]
[327977810,1716732708699,-1041.17,0.0003178,4]
[327977811,1716732708709,-500.0,0.0003178,4]
[327977812,1716732708718,-500.0,0.0003178,4]
[327977813,1716732708727,-656.51,0.0003178,4]
[327977814,1716732708737,-1310.5,0.0003178,4]
[327977815,1716732708747,-505.0738212,0.0003178,4]
[327977816,1716732708757,-552.73,0.0003178,4]
[327977817,1716732708766,-967.98,0.0003178,4]
[327977818,1716732708775,-1148.48,0.0003178,4]
[327977819,1716732708785,-795.96,0.0003178,4]
[327977820,1716732708795,-678.18,0.0003178,4]
[327977821,1716732708806,-500.0,0.0003178,4]
[327977822,1716732708816,-576.35,0.0003178,4]
[327977823,1716732708825,-585.71,0.0003178,4]
[327977824,1716732708834,-606.32,0.0003178,4]
[327977825,1716732708843,-1027.88,0.0003178,4]
[327977826,1716732708852,-2390.71,0.0003178,4]
[327977827,1716732708861,-720.94,0.0003178,4]
[327977828,1716732708870,-884.01,0.0003178,4]
[327977829,1716732708879,-571.26,0.0003178,4]
[327977830,1716732708888,-1408.04,0.0003178,4]
[327977831,1716732708898,-500.0,0.0003178,4]
[327977832,1716732708907,-500.0,0.0003178,4]
[327977833,1716732708916,-500.0,0.0003178,4]
[327977834,1716732708926,-1085.42,0.0003178,4]
[327977835,1716732708936,-1268.26,0.0003178,4]